[Event "*** Titled Tuesday Blitz"]
[Site "Chess.com"]
[Date "2019.01.01"]
[Round "3"]
[White "tteshan"]
[Black "akhairat"]
[Result "0-1"]
[WhiteElo "2125"]
[BlackElo "2270"]
[TimeControl "180+2"]
[EndTime "13:39:33 PST"]
[Termination "akhairat won by resignation"]

1. d4 {[%clk 0:03:01.9]} 1... g6 {[%clk 0:02:47.5]} 2. c4 {[%clk 0:03:02.6]}
2... Bg7 {[%clk 0:02:47.6]} 3. Nc3 {[%clk 0:03:03.6]} 3... d6 {[%clk 0:02:20.3]}
4. e4 {[%clk 0:03:04.3]} 4... e5 {[%clk 0:02:20.6]} 5. d5 {[%clk 0:03:04.6]}
5... a5 {[%clk 0:02:21.9]} 6. Be2 {[%clk 0:03:04.7]} 6... Na6 {[%clk 0:02:23.1]}
7. Be3 {[%clk 0:03:02.7]} 7... Ne7 {[%clk 0:02:22.7]} 8. Nf3 {[%clk 0:03:03.4]}
8... h6 {[%clk 0:02:21.7]} 9. Qd2 {[%clk 0:03:03.2]} 9... b6 {[%clk 0:02:20.7]}
10. a3 {[%clk 0:03:01.2]} 10... Nc5 {[%clk 0:02:21.4]} 11. Bd1 {[%clk
0:02:58.3]} 11... f5 {[%clk 0:02:20.2]} 12. exf5 {[%clk 0:02:55.1]} 12... gxf5
{[%clk 0:02:22.1]} 13. O-O {[%clk 0:02:47]} 13... f4 {[%clk 0:02:20.6]} 14. Bxc5
{[%clk 0:02:45]} 14... bxc5 {[%clk 0:02:21.1]} 15. Nh4 {[%clk 0:02:40.3]} 15...
O-O {[%clk 0:02:20.2]} 16. Ne4 {[%clk 0:02:34.7]} 16... Nf5 {[%clk 0:02:09.1]}
17. Ng6 {[%clk 0:02:25.2]} 17... Rf7 {[%clk 0:02:04.3]} 18. Bh5 {[%clk
0:02:12.9]} 18... Nd4 {[%clk 0:02:05.3]} 19. Qd3 {[%clk 0:02:07.2]} 19... Bf5
{[%clk 0:02:03.6]} 20. Rae1 {[%clk 0:01:59.2]} 20... Rb8 {[%clk 0:02:04.2]} 21.
Qc3 {[%clk 0:01:26.4]} 21... a4 {[%clk 0:02:02]} 22. b4 {[%clk 0:01:25.7]} 22...
axb3 {[%clk 0:02:00.6]} 23. g4 {[%clk 0:01:23]} 23... Bxe4 {[%clk 0:01:31.6]}
24. Rxe4 {[%clk 0:01:22]} 24... b2 {[%clk 0:01:32.7]} 25. Rb1 {[%clk 0:01:13.6]}
25... Rb3 {[%clk 0:01:33.8]} 26. Qa5 {[%clk 0:01:03.8]} 26... Nf3+ {[%clk
0:00:54.4]} 27. Kg2 {[%clk 0:00:58.2]} 27... Nd4 {[%clk 0:00:51.2]} 28. Qa4
{[%clk 0:00:36.7]} 28... Qd7 {[%clk 0:00:37.4]} 29. Qxd7 {[%clk 0:00:22.9]}
29... Rxd7 {[%clk 0:00:39.3]} 30. Nh4 {[%clk 0:00:23.8]} 30... Rd8 {[%clk
0:00:30]} 31. Nf5 {[%clk 0:00:22.5]} 31... Ra8 {[%clk 0:00:17.2]} 32. Nxd4
{[%clk 0:00:21.5]} 32... cxd4 {[%clk 0:00:18.7]} 33. Re2 {[%clk 0:00:22.9]}
33... Rab8 {[%clk 0:00:19.7]} 34. a4 {[%clk 0:00:23.2]} 34... d3 {[%clk
0:00:19.1]} 35. Rd2 {[%clk 0:00:24.3]} 35... e4 {[%clk 0:00:20.4]} 36. Bg6
{[%clk 0:00:25.6]} 36... e3 {[%clk 0:00:21.8]} 37. fxe3 {[%clk 0:00:26.9]} 37...
fxe3 {[%clk 0:00:23.7]} 38. Rxd3 {[%clk 0:00:28.3]} 38... Rxd3 {[%clk
0:00:20.9]} 39. Bxd3 {[%clk 0:00:30.2]} 39... Rb4 {[%clk 0:00:20.7]} 40. a5
{[%clk 0:00:31]} 40... Ra4 {[%clk 0:00:21.7]} 41. Kf3 {[%clk 0:00:32]} 41...
Rxa5 {[%clk 0:00:18]} 42. Kxe3 {[%clk 0:00:32.9]} 42... Ra3 {[%clk 0:00:19]} 43.
Kd2 {[%clk 0:00:33.3]} 43... Be5 {[%clk 0:00:19.4]} 44. h4 {[%clk 0:00:33.2]}
44... Kg7 {[%clk 0:00:18.3]} 45. Kc2 {[%clk 0:00:32.8]} 45... Ra8 {[%clk
0:00:17.7]} 46. g5 {[%clk 0:00:33.8]} 46... Rf8 {[%clk 0:00:18.3]} 47. g6 {[%clk
0:00:28.5]} 47... Rf2+ {[%clk 0:00:19.1]} 48. Kb3 {[%clk 0:00:28.3]} 48... Rh2
{[%clk 0:00:20.8]} 49. Rf1 {[%clk 0:00:25.6]} 49... Bf6 {[%clk 0:00:22.1]} 50.
Rf4 {[%clk 0:00:21.8]} 50... Rh1 {[%clk 0:00:22.2]} 51. Ka2 {[%clk 0:00:23.2]}
51... Ra1+ {[%clk 0:00:22.5]} 52. Kb3 {[%clk 0:00:24.6]} 52... b1=Q+ {[%clk
0:00:24.4]} 53. Bxb1 {[%clk 0:00:25.9]} 53... Rxb1+ {[%clk 0:00:26.3]} 54. Kc2
{[%clk 0:00:26.5]} 54... Rb2+ {[%clk 0:00:26.3]} 55. Kd3 {[%clk 0:00:27.4]}
55... Rb3+ {[%clk 0:00:27.6]} 56. Ke4 {[%clk 0:00:27.7]} 56... Rc3 {[%clk
0:00:27.6]} 57. Kf5 {[%clk 0:00:28.9]} 57... Re3 {[%clk 0:00:28.6]} 58. h5
{[%clk 0:00:28.3]} 58... Re5+ {[%clk 0:00:29.1]} 59. Kg4 {[%clk 0:00:29.4]}
59... Rg5+ {[%clk 0:00:30.5]} 60. Kh4 {[%clk 0:00:28.2]} 60... Rxd5+ {[%clk
0:00:25.4]} 61. Kg4 {[%clk 0:00:27.2]} 61... Rg5+ {[%clk 0:00:25]} 62. Kh4
{[%clk 0:00:27.9]} 62... Rxg6+ {[%clk 0:00:26.3]} 63. Kh3 {[%clk 0:00:28.3]}
63... Rg5 {[%clk 0:00:27.5]} 64. Re4 {[%clk 0:00:26.1]} 64... Rxh5+ {[%clk
0:00:26.7]} 65. Kg3 {[%clk 0:00:26.2]} 65... Re5 {[%clk 0:00:28.6]} 66. Rf4
{[%clk 0:00:25.5]} 66... Bg5 {[%clk 0:00:28.7]} 67. Rf1 {[%clk 0:00:25.5]} 67...
Re3+ {[%clk 0:00:30.1]} 68. Kg4 {[%clk 0:00:25.5]} 68... Rc3 {[%clk 0:00:32]}
69. Ra1 {[%clk 0:00:22.6]} 69... Rxc4+ {[%clk 0:00:32.8]} 70. Kf5 {[%clk
0:00:23.6]} 70... Kf7 {[%clk 0:00:33.1]} 71. Rf1 {[%clk 0:00:20.5]} 71... Rf4+
{[%clk 0:00:34.3]} 72. Rxf4 {[%clk 0:00:21.5]} 72... Bxf4 {[%clk 0:00:36.2]} 73.
Kxf4 {[%clk 0:00:23.4]} 73... c5 {[%clk 0:00:37.6]} 0-1

[Event "*** Titled Tuesday Blitz"]
[Site "Chess.com"]
[Date "2019.01.01"]
[Round "3"]
[White "gemarin"]
[Black "aquaticpineapples"]
[Result "0-1"]
[WhiteElo "2064"]
[BlackElo "2096"]
[TimeControl "180+2"]
[EndTime "13:39:33 PST"]
[Termination "aquaticpineapples won by resignation"]

1. d4 {[%clk 0:03:01.9]} 1... d5 {[%clk 0:03:00.9]} 2. c4 {[%clk 0:03:02]} 2...
c6 {[%clk 0:03:01.7]} 3. e3 {[%clk 0:03:01.8]} 3... e6 {[%clk 0:03:02.6]} 4. Nc3
{[%clk 0:03:02.2]} 4... Bd6 {[%clk 0:03:03.2]} 5. Nf3 {[%clk 0:03:02.7]} 5...
Nf6 {[%clk 0:03:03.1]} 6. Be2 {[%clk 0:03:02.8]} 6... Nbd7 {[%clk 0:03:03.3]} 7.
O-O {[%clk 0:03:03.5]} 7... O-O {[%clk 0:03:04.2]} 8. Qc2 {[%clk 0:03:00.9]}
8... Qe7 {[%clk 0:03:01.8]} 9. Rd1 {[%clk 0:03:01.1]} 9... dxc4 {[%clk 0:02:53]}
10. e4 {[%clk 0:02:39.6]} 10... e5 {[%clk 0:02:49.4]} 11. Bxc4 {[%clk
0:02:22.6]} 11... b5 {[%clk 0:02:46.3]} 12. Bd3 {[%clk 0:02:12.6]} 12... Bb7
{[%clk 0:02:42.7]} 13. d5 {[%clk 0:02:10.1]} 13... cxd5 {[%clk 0:02:36.9]} 14.
Nxb5 {[%clk 0:02:07.3]} 14... dxe4 {[%clk 0:02:21.1]} 15. Nxd6 {[%clk
0:02:06.8]} 15... Qxd6 {[%clk 0:02:09.4]} 16. Bxe4 {[%clk 0:02:04.9]} 16... Bxe4
{[%clk 0:02:08.5]} 17. Rxd6 {[%clk 0:01:57.1]} 17... Bxc2 {[%clk 0:02:09]} 18.
Be3 {[%clk 0:01:54.1]} 18... Be4 {[%clk 0:02:02.8]} 19. Nd2 {[%clk 0:01:46]}
19... Bg6 {[%clk 0:01:58.8]} 20. Rd1 {[%clk 0:01:43.8]} 20... Nb6 {[%clk
0:01:51.6]} 21. a3 {[%clk 0:01:39.7]} 21... Rfd8 {[%clk 0:01:46]} 22. Nf3 {[%clk
0:01:40.3]} 22... Rxd6 {[%clk 0:01:44.5]} 23. Rxd6 {[%clk 0:01:40.6]} 23... Nc4
{[%clk 0:01:45.1]} 24. Ra6 {[%clk 0:01:41.6]} 24... Nxe3 {[%clk 0:01:26.4]} 25.
fxe3 {[%clk 0:01:41.9]} 25... Bd3 {[%clk 0:01:23.2]} 26. Ra5 {[%clk 0:01:36.8]}
26... e4 {[%clk 0:01:21.8]} 27. Nd4 {[%clk 0:01:37.8]} 27... Ng4 {[%clk
0:01:17.4]} 28. Nf5 {[%clk 0:01:37.4]} 28... g6 {[%clk 0:01:15.8]} 29. Ne7+
{[%clk 0:01:34.6]} 29... Kg7 {[%clk 0:01:14.8]} 30. Nd5 {[%clk 0:01:35.7]} 30...
Rd8 {[%clk 0:01:09.5]} 31. h3 {[%clk 0:01:35.6]} 31... Ne5 {[%clk 0:01:05.5]}
32. Nc3 {[%clk 0:01:34.5]} 32... Nc4 {[%clk 0:01:04.6]} 33. Rxa7 {[%clk
0:01:36]} 33... Nxe3 {[%clk 0:01:03.6]} 34. Re7 {[%clk 0:01:28.5]} 34... Nc4
{[%clk 0:01:00.1]} 35. Nxe4 {[%clk 0:01:25.5]} 35... Bxe4 {[%clk 0:01:01]} 36.
Rxe4 {[%clk 0:01:25.3]} 36... Nxb2 {[%clk 0:01:01.6]} 37. Rb4 {[%clk 0:01:23.7]}
37... Rd1+ {[%clk 0:00:57.8]} 38. Kh2 {[%clk 0:01:23.5]} 38... Nd3 {[%clk
0:00:58.4]} 39. Rd4 {[%clk 0:01:23.3]} 39... Nb2 {[%clk 0:00:55.1]} 40. Rb4
{[%clk 0:01:23.1]} 40... Nd3 {[%clk 0:00:54.8]} 41. Rd4 {[%clk 0:01:23.6]} 41...
Kf6 {[%clk 0:00:50.6]} 42. a4 {[%clk 0:01:24.1]} 42... Ke5 {[%clk 0:00:44.7]}
43. Rd8 {[%clk 0:01:20.7]} 43... Nb2 {[%clk 0:00:39.8]} 44. Re8+ {[%clk
0:01:21.2]} 44... Kf6 {[%clk 0:00:39.4]} 45. a5 {[%clk 0:01:21.5]} 45... Ra1
{[%clk 0:00:39.7]} 46. Rb8 {[%clk 0:01:21.5]} 46... Nc4 {[%clk 0:00:37.9]} 47.
Rc8 {[%clk 0:01:19.3]} 47... Nxa5 {[%clk 0:00:37.7]} 48. Ra8 {[%clk 0:01:18.8]}
48... Nb3 {[%clk 0:00:38.6]} 49. Rc8 {[%clk 0:01:19.4]} 49... h5 {[%clk
0:00:38.3]} 50. Rc3 {[%clk 0:01:17.1]} 50... Nd4 {[%clk 0:00:38.7]} 51. Rc4
{[%clk 0:01:17.4]} 51... Nf5 {[%clk 0:00:37]} 52. h4 {[%clk 0:01:15.1]} 52...
Rd1 {[%clk 0:00:35.2]} 53. Ra4 {[%clk 0:01:07]} 53... Rd4 {[%clk 0:00:35.5]} 54.
Ra6+ {[%clk 0:01:08.4]} 54... Kg7 {[%clk 0:00:33.6]} 55. g3 {[%clk 0:01:09]}
55... Rd3 {[%clk 0:00:33.8]} 56. Ra5 {[%clk 0:01:08.5]} 56... Nxg3 {[%clk
0:00:31.4]} 57. Rb5 {[%clk 0:01:05.6]} 57... Nf5 {[%clk 0:00:31.5]} 58. Rc5
{[%clk 0:01:05.1]} 58... Nxh4 {[%clk 0:00:31.7]} 59. Rc6 {[%clk 0:01:05.3]}
59... Nf5 {[%clk 0:00:32]} 60. Rc5 {[%clk 0:01:06.1]} 60... h4 {[%clk
0:00:32.5]} 61. Rb5 {[%clk 0:01:07.4]} 61... f6 {[%clk 0:00:32.9]} 62. Rb7+
{[%clk 0:01:07.5]} 62... Kh6 {[%clk 0:00:33.8]} 63. Rc7 {[%clk 0:01:07.7]} 63...
g5 {[%clk 0:00:33.6]} 64. Rd7 {[%clk 0:01:08.3]} 64... g4 {[%clk 0:00:33.6]} 65.
Rxd3 {[%clk 0:01:08.2]} 65... Kg5 {[%clk 0:00:34.5]} 66. Rb3 {[%clk 0:01:07.9]}
66... Nd4 {[%clk 0:00:33.4]} 67. Ra3 {[%clk 0:01:04.7]} 67... Nf3+ {[%clk
0:00:31.7]} 68. Kg2 {[%clk 0:01:05.2]} 68... f5 {[%clk 0:00:31.9]} 69. Ra8
{[%clk 0:01:02.5]} 69... Ne5 {[%clk 0:00:21.2]} 70. Rg8+ {[%clk 0:00:57]} 70...
Ng6 {[%clk 0:00:21.9]} 71. Ra8 {[%clk 0:00:57.4]} 71... h3+ {[%clk 0:00:20.9]}
72. Kh2 {[%clk 0:00:58.2]} 72... Kh4 {[%clk 0:00:19.5]} 73. Rg8 {[%clk
0:00:57.7]} 73... g3+ {[%clk 0:00:17.2]} 74. Kh1 {[%clk 0:00:59]} 74... Nf4
{[%clk 0:00:16.9]} 75. Rh8+ {[%clk 0:00:59.3]} 75... Kg4 {[%clk 0:00:17.8]} 76.
Rf8 {[%clk 0:00:56.2]} 76... Ne2 {[%clk 0:00:15.8]} 77. Rg8+ {[%clk 0:00:53.5]}
77... Kf3 {[%clk 0:00:16.9]} 78. Rg5 {[%clk 0:00:52.3]} 78... g2+ {[%clk
0:00:17.3]} 79. Kh2 {[%clk 0:00:52.7]} 79... g1=Q+ {[%clk 0:00:16.9]} 80. Rxg1
{[%clk 0:00:52.5]} 80... Nxg1 {[%clk 0:00:18]} 81. Kxg1 {[%clk 0:00:53.9]} 81...
Kg3 {[%clk 0:00:19.1]} 82. Kh1 {[%clk 0:00:54.9]} 82... Kf2 {[%clk 0:00:18.3]}
83. Kh2 {[%clk 0:00:55.4]} 83... f4 {[%clk 0:00:19.6]} 84. Kxh3 {[%clk
0:00:56.5]} 84... f3 {[%clk 0:00:20.8]} 85. Kh2 {[%clk 0:00:57.3]} 85... Ke2
{[%clk 0:00:21.9]} 86. Kg3 {[%clk 0:00:57.7]} 86... f2 {[%clk 0:00:23.2]} 0-1

[Event "*** Titled Tuesday Blitz"]
[Site "Chess.com"]
[Date "2019.01.01"]
[Round "3"]
[White "TreinadorBR"]
[Black "Zufi1811"]
[Result "1-0"]
[WhiteElo "2264"]
[BlackElo "2406"]
[TimeControl "180+2"]
[EndTime "13:41:25 PST"]
[Termination "TreinadorBR won by checkmate"]

1. e4 {[%clk 0:03:01.9]} 1... c5 {[%clk 0:02:59.1]} 2. Nf3 {[%clk 0:03:00.5]}
2... Nc6 {[%clk 0:02:59.3]} 3. d4 {[%clk 0:03:02.4]} 3... cxd4 {[%clk 0:03:01]}
4. Nxd4 {[%clk 0:03:03.5]} 4... Qb6 {[%clk 0:03:02.5]} 5. Nb3 {[%clk 0:03:03.9]}
5... Nf6 {[%clk 0:03:03.3]} 6. Nc3 {[%clk 0:03:04.1]} 6... e6 {[%clk 0:03:04.7]}
7. a3 {[%clk 0:03:05.4]} 7... a6 {[%clk 0:03:03.9]} 8. Be3 {[%clk 0:03:06.5]}
8... Qc7 {[%clk 0:03:05.2]} 9. Be2 {[%clk 0:03:05.6]} 9... b5 {[%clk 0:03:05.5]}
10. O-O {[%clk 0:03:06.1]} 10... Bb7 {[%clk 0:03:06.7]} 11. f4 {[%clk 0:03:07]}
11... d6 {[%clk 0:03:07.1]} 12. Bf3 {[%clk 0:03:07.1]} 12... Be7 {[%clk
0:03:07.7]} 13. Qe1 {[%clk 0:03:08.4]} 13... O-O {[%clk 0:03:08.3]} 14. Rd1
{[%clk 0:03:08.3]} 14... Nd7 {[%clk 0:03:06.1]} 15. Kh1 {[%clk 0:02:43.5]} 15...
Nb6 {[%clk 0:03:05.4]} 16. f5 {[%clk 0:02:28.7]} 16... Nc4 {[%clk 0:03:01.8]}
17. Bc1 {[%clk 0:02:29.1]} 17... Bf6 {[%clk 0:02:55.9]} 18. g4 {[%clk 0:02:17]}
18... Rac8 {[%clk 0:02:22.8]} 19. g5 {[%clk 0:02:17.1]} 19... Be5 {[%clk
0:02:24.1]} 20. f6 {[%clk 0:02:16.8]} 20... g6 {[%clk 0:02:22.2]} 21. Qh4 {[%clk
0:02:17.3]} 21... h5 {[%clk 0:01:36.2]} 22. Bxh5 {[%clk 0:02:06.9]} 22... d5
{[%clk 0:01:20]} 23. Bf3 {[%clk 0:01:47.2]} 23... Qd8 {[%clk 0:01:04.8]} 24. Qh6
{[%clk 0:01:23]} 24... Bxf6 {[%clk 0:01:05.4]} 25. gxf6 {[%clk 0:01:24.9]} 25...
Qxf6 {[%clk 0:01:06.7]} 26. exd5 {[%clk 0:01:26.3]} 26... N6e5 {[%clk
0:01:07.1]} 27. Ne4 {[%clk 0:01:19.5]} 27... Qg7 {[%clk 0:01:04.9]} 28. Qxg7+
{[%clk 0:01:17.7]} 28... Kxg7 {[%clk 0:01:06.8]} 29. Nd6 {[%clk 0:01:11.5]}
29... Nxf3 {[%clk 0:01:02.9]} 30. Nxb7 {[%clk 0:01:11]} 30... Nfe5 {[%clk
0:00:57.2]} 31. dxe6 {[%clk 0:01:03.8]} 31... fxe6 {[%clk 0:00:59.1]} 32. Bf4
{[%clk 0:01:00.2]} 32... Ng4 {[%clk 0:00:54.3]} 33. Rd7+ {[%clk 0:00:56.4]}
33... Kg8 {[%clk 0:00:55.7]} 34. h3 {[%clk 0:00:48.2]} 34... Nf6 {[%clk
0:00:48.8]} 35. Re7 {[%clk 0:00:45.3]} 35... Nd5 {[%clk 0:00:48.7]} 36. Rxe6
{[%clk 0:00:38.1]} 36... Nxf4 {[%clk 0:00:49.4]} 37. Rxa6 {[%clk 0:00:32.9]}
37... Ne3 {[%clk 0:00:38.5]} 38. Rf2 {[%clk 0:00:27.2]} 38... Kg7 {[%clk
0:00:26.8]} 39. Nd6 {[%clk 0:00:26.2]} 39... Rxc2 {[%clk 0:00:25.7]} 40. Rxc2
{[%clk 0:00:26.6]} 40... Nxc2 {[%clk 0:00:27.6]} 41. Ra7+ {[%clk 0:00:27.1]}
41... Kh6 {[%clk 0:00:28.3]} 42. Nf7+ {[%clk 0:00:27.2]} 42... Kh5 {[%clk
0:00:29]} 43. Kh2 {[%clk 0:00:25.8]} 43... Ne3 {[%clk 0:00:25.7]} 44. Nd4 {[%clk
0:00:25.6]} 44... Nf5 {[%clk 0:00:21.6]} 45. Nxf5 {[%clk 0:00:24.4]} 45... gxf5
{[%clk 0:00:23.5]} 46. b3 {[%clk 0:00:19.7]} 46... Re8 {[%clk 0:00:23.4]} 47.
Nd6 {[%clk 0:00:18.6]} 47... Re3 {[%clk 0:00:16.9]} 48. Nxf5 {[%clk 0:00:17.6]}
48... Rxh3+ {[%clk 0:00:17.6]} 49. Kg1 {[%clk 0:00:18.5]} 49... Rxb3 {[%clk
0:00:19]} 50. Nd4 {[%clk 0:00:18.4]} 50... Rb2 {[%clk 0:00:19.9]} 51. Rb7 {[%clk
0:00:17]} 51... Kg4 {[%clk 0:00:19.4]} 52. Rxb5 {[%clk 0:00:16.4]} 52... Rd2
{[%clk 0:00:20]} 53. Rb4 {[%clk 0:00:16.2]} 53... Kg3 {[%clk 0:00:14.7]} 54.
Rb3+ {[%clk 0:00:16.9]} 54... Kg4 {[%clk 0:00:14]} 55. Rb4 {[%clk 0:00:16.9]}
55... Ra2 {[%clk 0:00:14.9]} 56. a4 {[%clk 0:00:17.3]} 56... Nh3+ {[%clk
0:00:14.9]} 57. Kf1 {[%clk 0:00:17.7]} 57... Kg3 {[%clk 0:00:15.8]} 58. Ne2+
{[%clk 0:00:17.3]} 58... Kf3 {[%clk 0:00:14.3]} 59. Rb3+ {[%clk 0:00:18.6]}
59... Kg4 {[%clk 0:00:15.2]} 60. Rb4+ {[%clk 0:00:18]} 60... Kf5 {[%clk
0:00:13.3]} 61. Rb5+ {[%clk 0:00:18]} 61... Kg4 {[%clk 0:00:11.7]} 62. Rb4+
{[%clk 0:00:18.9]} 62... Kf5 {[%clk 0:00:12.8]} 63. Rb5+ {[%clk 0:00:19.3]}
63... Kf6 {[%clk 0:00:14.2]} 64. Rb4 {[%clk 0:00:18.8]} 64... Ng5 {[%clk
0:00:14.6]} 65. Nd4 {[%clk 0:00:18]} 65... Ne4 {[%clk 0:00:14.2]} 66. Ne2 {[%clk
0:00:15.4]} 66... Nd2+ {[%clk 0:00:10.9]} 67. Kf2 {[%clk 0:00:15.5]} 67... Nb1
{[%clk 0:00:08.4]} 68. Rxb1 {[%clk 0:00:14.5]} 68... Rxa4 {[%clk 0:00:09.1]} 69.
Rb5 {[%clk 0:00:15.7]} 69... Rc4 {[%clk 0:00:09.9]} 70. Ke3 {[%clk 0:00:16.1]}
70... Ra4 {[%clk 0:00:11.4]} 71. Nd4 {[%clk 0:00:16.2]} 71... Ra1 {[%clk
0:00:11.2]} 72. Rf5+ {[%clk 0:00:16.2]} 72... Kg6 {[%clk 0:00:11.1]} 73. Rb5
{[%clk 0:00:17]} 73... Re1+ {[%clk 0:00:12.4]} 74. Kf4 {[%clk 0:00:17.6]} 74...
Rf1+ {[%clk 0:00:13.2]} 75. Nf3 {[%clk 0:00:18.9]} 75... Kf7 {[%clk 0:00:12.7]}
76. Rb6 {[%clk 0:00:18.7]} 76... Ke7 {[%clk 0:00:13.8]} 77. Ke4 {[%clk
0:00:17.3]} 77... Kd7 {[%clk 0:00:13.9]} 78. Nd4 {[%clk 0:00:17.9]} 78... Kc7
{[%clk 0:00:14.6]} 79. Rh6 {[%clk 0:00:18.6]} 79... Rg1 {[%clk 0:00:13.8]} 80.
Ke5 {[%clk 0:00:18.6]} 80... Rg5+ {[%clk 0:00:14.5]} 81. Nf5 {[%clk 0:00:19.5]}
81... Rg1 {[%clk 0:00:16]} 82. Kd5 {[%clk 0:00:19.3]} 82... Rg5 {[%clk
0:00:14.6]} 83. Rf6 {[%clk 0:00:19.8]} 83... Rh5 {[%clk 0:00:15.3]} 84. Kc5
{[%clk 0:00:18]} 84... Rg5 {[%clk 0:00:15.1]} 85. Rf7+ {[%clk 0:00:18.6]} 85...
Kd8 {[%clk 0:00:16.5]} 86. Kc6 {[%clk 0:00:16.7]} 86... Ke8 {[%clk 0:00:16.7]}
87. Nd6+ {[%clk 0:00:17.8]} 87... Kd8 {[%clk 0:00:18]} 88. Rd7# {[%clk
0:00:19.7]} 1-0